[Event "15th Deltalift Open 2018"]
[Site "Halmstad"]
[Date "2018.05.10"]
[Round "4"]
[White "Haugli, Petter"]
[Black "Bit-Narva, David"]
[Result "1-0"]
[ECO "A21"]
[WhiteElo "2245"]
[BlackElo "1961"]
[Annotator "NA"]
[PlyCount "81"]
[EventDate "2018.??.??"]
[EventType "swiss"]
[EventCountry "SWE"]
[SourceTitle "playchess.com"]
[Source "ChessBase"]
[SourceQuality "1"]
[TimeControl "1800+12"]

1. c4 {[%emt 0:00:00]} e5 {[%emt 0:03:00]} 2. Nc3 {[%emt 0:00:14]} d6 {[%emt 0:00:02]} 3. Nf3 {[%emt 0:00:24]} f5 {[%emt 0:00:05]} 4. e4 Nf6 {[%emt 0:01:21] A21: English Opening: 1...e5 2 Nc3} (4... c5 5. d3 Nc6 6. g3 Nf6 7. Bg2 Be7 8. O-O O-O 9. exf5 Bxf5 10. Ng5 Qd7 11. Nd5 h6 12. Nxf6+ Bxf6 {½-½ (57) Meskovs,N (2476)-Ismagambetov,A (2542) Baku 2016}) 5. exf5 {[%emt 0:03:00]} Bxf5 {[%emt 0:00:05] LiveBook: 4 Games} 6. d4 {[%emt 0:00:09]} e4 {[%emt 0:03:35]} 7. Nh4 {[%emt 0:00:30]} Bg4 {[%emt 0:02:19]} 8. Be2 {[%emt 0:00:55]} Bxe2 {[%emt 0:02:03]} 9. Qxe2 {[%emt 0:00:05]} Be7 $146 {[%emt 0:00:32]} ({Predecessor:} 9... Qe7 10. Bg5 Nbd7 11. Nd5 Qe6 12. Nxc7+ {1-0 (12) Kaupert,V-Teixeira,J Brazil CXEB 1997}) 10. Nxe4 {[%emt 0:04:33]} O-O {[%emt 0:00:27]} 11. Nxf6+ {[%emt 0:00:11]} Bxf6 {[%emt 0:00:07]} 12. Nf3 {[%emt 0:00:01]} Re8 {[%emt 0:01:12]} 13. Be3 {[%emt 0:00:02]} c5 {[%emt 0:00:17]} 14. dxc5 {[%emt 0:04:27]} dxc5 {[%emt 0:00:02]} 15. O-O {[%emt 0:00:03]} Nc6 {[%emt 0:00:05]} 16. Rfd1 {[%emt 0:00:01]} Qb6 {[%emt 0:02:03]} 17. Qc2 {[%emt 0:01:17]} Rad8 {[%emt 0:00:56]} 18. Rab1 {[%emt 0:02:13]} Nd4 {[%emt 0:00:36]} 19. Bxd4 $1 {[%emt 0:00:09]} cxd4 {[%emt 0:00:03]} 20. b3 {[%emt 0:03:23]} Re7 {[%emt 0:02:03]} 21. Qd3 {[%emt 0:02:14]} Qb4 {[%emt 0:02:36]} 22. Re1 {[%emt 0:01:53]} Rxe1+ {[%emt 0:05:22]} 23. Rxe1 {[%emt 0:00:03]} Qc3 {[%emt 0:01:31]} 24. Rd1 {[%emt 0:00:47]} Qa5 {[%emt 0:03:37]} 25. Rd2 {[%emt 0:01:48]} Qa3 {[%emt 0:00:34]} 26. g3 {[%emt 0:00:52]} Re8 {[%emt 0:00:35]} (26... a6 $16 27. Qe4 Qb4) 27. Re2 {[%emt 0:01:09]} Qc1+ {[%emt 0:00:08]} 28. Kg2 {[%emt 0:00:02]} Rd8 {[%emt 0:00:05]} 29. Rc2 {[%emt 0:02:51]} Qb1 {[%emt 0:00:09]} 30. Rd2 {[%emt 0:00:02]} Qc1 {[%emt 0:00:06]} 31. Qe4 {[%emt 0:01:03]} Qc3 {[%emt 0:00:23]} 32. Qxb7 {[%emt 0:00:30]} d3 {[%emt 0:00:13]} 33. Qe4 {[%emt 0:00:13]} Kf8 {[%emt 0:00:20]} 34. c5 {[%emt 0:00:18]} (34. Qxh7 $142 Rd6 35. Qf5) 34... g5 $2 {[%emt 0:00:11]} (34... h6 35. b4 Kg8) 35. h3 {[%emt 0:00:15]} Qxc5 {[%emt 0:00:08]} 36. Rxd3 {[%emt 0:00:05]} Rxd3 {[%emt 0:00:05]} 37. Qxd3 {[%emt 0:00:02]} Qe7 {[%emt 0:00:17]} 38. Qd5 {[%emt 0:00:16]} Kg7 {[%emt 0:00:21]} 39. Nd2 {[%emt 0:00:10]} Qe2 {[%emt 0:00:07]} 40. Ne4 {[%emt 0:00:09]} Qb2 {[%emt 0:00:09]} 41. Qf5 $18 {[%emt 0:00:22]} (41. Nd6 $142 h6 42. Qf7+ Kh8 43. Nf5) 1-0

[Event "15th Deltalift Open 2018"]
[Site "Halmstad"]
[Date "2018.05.10"]
[Round "4"]
[White "Tuomainen, Felix"]
[Black "Torngren, Gustav"]
[Result "1-0"]
[ECO "A61"]
[WhiteElo "2211"]
[BlackElo "2023"]
[Annotator "NA"]
[PlyCount "125"]
[EventDate "2018.??.??"]
[EventType "swiss"]
[EventCountry "SWE"]
[SourceTitle "playchess.com"]
[Source "ChessBase"]
[SourceQuality "1"]
[TimeControl "1800+12"]

1. d4 {[%emt 0:00:00]} Nf6 {[%emt 0:00:01]} 2. c4 {[%emt 0:00:00]} e6 {[%emt 0:00:01]} 3. Nc3 {[%emt 0:00:00]} c5 {[%emt 0:00:02]} 4. d5 {[%emt 0:00:02]} exd5 {[%emt 0:00:01]} 5. cxd5 {[%emt 0:00:01]} d6 {[%emt 0:00:00]} 6. Nf3 {[%emt 0:00:04]} g6 {[%emt 0:00:02]} 7. Nd2 {[%emt 0:00:13]} Bg7 {[%emt 0:00:02]} 8. e4 {[%emt 0:00:03]} O-O {[%emt 0:00:03]} 9. Be2 {[%emt 0:00:03]} Na6 {[%emt 0:00:02]} 10. O-O {[%emt 0:00:06]} Nc7 {[%emt 0:00:01]} 11. a4 {[%emt 0:00:04]} Rb8 {[%emt 0:00:24]} 12. Nc4 {[%emt 0:00:11] A73: Modern Benoni: Classical: Unusual Black 9th moves} Re8 {[%emt 0:00:40]} 13. Qc2 {[%emt 0:00:17] [#]} b6 $146 {[%emt 0:00:16]} ({Predecessor:} 13... a6 14. Bf4 Bf8 15. Rad1 b5 16. Na5 Bd7 17. Nc6 Bxc6 18. dxc6 b4 19. e5 bxc3 20. exd6 Rxb2 21. dxc7 {1-0 (68) Lalev,D (2385)-Groszpeter,A (2505) Varna 1983}) 14. Bf4 {[%emt 0:00:10]} Bf8 {[%emt 0:00:03]} 15. Rab1 {[%emt 0:02:10]} Ba6 {[%emt 0:00:42]} 16. b4 $2 {[%emt 0:00:16] [#]} (16. f3 $14 {keeps the upper hand.}) 16... Bxc4 $2 {[%emt 0:00:02]} ({Better is} 16... cxb4 $1 $17 17. Rxb4 Nxe4 18. Nxe4 Nxd5) 17. Bxc4 {[%emt 0:00:04]} cxb4 {[%emt 0:01:41]} 18. Rxb4 {[%emt 0:00:03]} Rc8 {[%emt 0:00:04]} 19. Qd3 {[%emt 0:00:07]} Nd7 {[%emt 0:00:14]} 20. Rbb1 {[%emt 0:00:55]} Nc5 {[%emt 0:00:41]} 21. Qc2 {[%emt 0:00:21]} Bg7 {[%emt 0:00:40]} 22. f3 {[%emt 0:00:14]} Re7 {[%emt 0:04:40]} 23. Bg5 {[%emt 0:01:19]} f6 {[%emt 0:00:01]} 24. Be3 {[%emt 0:00:03]} Ne8 {[%emt 0:00:46]} 25. Bd4 {[%emt 0:00:53]} f5 {[%emt 0:01:40]} 26. Bxg7 {[%emt 0:00:09]} Nxg7 {[%emt 0:00:02]} 27. Rfe1 {[%emt 0:00:25]} fxe4 {[%emt 0:04:14]} 28. Nxe4 {[%emt 0:00:12]} Nxe4 {[%emt 0:00:22]} 29. Rxe4 {[%emt 0:00:03]} Rc5 {[%emt 0:03:39]} 30. Qe2 {[%emt 0:00:20]} Rec7 {[%emt 0:02:30]} 31. Bb5 {[%emt 0:00:56]} Rc1+ {[%emt 0:00:24]} 32. Rxc1 {[%emt 0:00:02]} Rxc1+ {[%emt 0:00:02]} 33. Kf2 {[%emt 0:00:06]} Qf6 {[%emt 0:01:54]} 34. Qd2 {[%emt 0:00:58]} Rb1 {[%emt 0:00:45]} 35. Be2 {[%emt 0:00:18]} Nf5 {[%emt 0:01:45]} (35... Rh1 $11 {remains equal.} 36. Qd4 Qg5) 36. g4 {[%emt 0:02:13]} Qh4+ {[%emt 0:02:05]} 37. Kg2 {[%emt 0:00:02]} Ng3 {[%emt 0:00:54]} 38. Re8+ {[%emt 0:01:02]} Kf7 {[%emt 0:00:06]} 39. Qe3 {[%emt 0:00:04]} Nxe2 {[%emt 0:00:42]} 40. Qe6+ {[%emt 0:00:46]} ({Worse is} 40. Qxe2 Rb2 $11) 40... Kg7 {[%emt 0:00:01]} 41. Re7+ {[%emt 0:00:25]} Kh6 {[%emt 0:00:51]} 42. Qe3+ $18 {[%emt 0:00:13]} Qg5 {[%emt 0:00:17]} 43. Rxh7+ {[%emt 0:00:06]} Kxh7 {[%emt 0:00:01]} 44. Qxg5 {[%emt 0:00:01]} Rb2 {[%emt 0:01:26]} 45. Qe7+ {[%emt 0:00:08]} Kg8 {[%emt 0:00:01]} 46. Qxd6 {[%emt 0:01:08]} Nc3+ {[%emt 0:00:29]} 47. Kh3 {[%emt 0:00:04]} Nxa4 {[%emt 0:00:01]} 48. Qd8+ {[%emt 0:00:07]} Kh7 {[%emt 0:00:12]} 49. Qd7+ {[%emt 0:00:01]} Kh6 {[%emt 0:00:00]} 50. Qxa4 {[%emt 0:00:10]} b5 {[%emt 0:00:10]} 51. Qf4+ {[%emt 0:00:06]} Kh7 {[%emt 0:00:01]} 52. Qc7+ {[%emt 0:00:05]} Kh6 {[%emt 0:00:04]} 53. Qc1+ {[%emt 0:00:02]} Kh7 {[%emt 0:00:08]} 54. Qxb2 {[%emt 0:00:03]} a5 {[%emt 0:00:01]} 55. Qxb5 {[%emt 0:00:01]} a4 {[%emt 0:00:01]} 56. Qxa4 {[%emt 0:00:02]} Kg7 {[%emt 0:00:06]} 57. g5 {[%emt 0:00:02]} Kf7 {[%emt 0:00:03]} 58. Qd7+ {[%emt 0:00:02]} Kf8 {[%emt 0:00:03]} 59. Kg3 {[%emt 0:00:01]} Kg8 {[%emt 0:00:02]} 60. Kf4 {[%emt 0:00:01]} Kf8 {[%emt 0:00:01]} 61. Ke5 {[%emt 0:00:01]} Kg8 {[%emt 0:00:01]} 62. Kf6 {[%emt 0:00:01]} Kf8 {[%emt 0:00:01]} 63. Qd8# {[%emt 0:00:02]} 1-0

[Event "15th Deltalift Open 2018"]
[Site "Halmstad"]
[Date "2018.05.10"]
[Round "4"]
[White "Nilsson, Patrik"]
[Black "Bohman Karlholm, Adrian"]
[Result "1-0"]
[ECO "B01"]
[WhiteElo "2195"]
[BlackElo "2019"]
[Annotator "NA"]
[PlyCount "91"]
[EventDate "2018.??.??"]
[EventType "swiss"]
[EventCountry "SWE"]
[SourceTitle "playchess.com"]
[Source "ChessBase"]
[SourceQuality "1"]
[TimeControl "1800+12"]

1. e4 {[%emt 0:00:00]} d5 {[%emt 0:00:07]} 2. exd5 {[%emt 0:00:00]} Qxd5 {[%emt 0:00:06]} 3. Nf3 {[%emt 0:00:00]} Bg4 {[%emt 0:00:26]} 4. Be2 {[%emt 0:00:00]} Nc6 {[%emt 0:00:48]} 5. h3 {[%emt 0:00:11]} Bh5 {[%emt 0:00:53]} 6. d4 {[%emt 0:02:23]} O-O-O {[%emt 0:02:44]} 7. Be3 {[%emt 0:02:10]} e5 {[%emt 0:01:32]} 8. c4 {[%emt 0:03:57]} Bb4+ {[%emt 0:03:26]} 9. Nbd2 {[%emt 0:02:58]} Qd6 {[%emt 0:05:47]} 10. d5 {[%emt 0:00:50]} Nce7 {[%emt 0:02:06]} 11. O-O {[%emt 0:00:21]} f5 {[%emt 0:01:07]} 12. a3 {[%emt 0:02:58]} Bxd2 {[%emt 0:00:56]} 13. Qxd2 {[%emt 0:02:07]} Kb8 {[%emt 0:05:10]} 14. Nxe5 {[%emt 0:02:14]} Qxe5 {[%emt 0:01:43]} 15. Bxh5 {[%emt 0:00:03]} f4 {[%emt 0:00:20]} 16. Bd4 {[%emt 0:02:51]} Qxh5 {[%emt 0:00:08]} 17. Bxg7 {[%emt 0:00:02]} Nh6 {[%emt 0:00:17]} 18. Qxf4 {[%emt 0:01:44]} Nf7 {[%emt 0:02:51]} 19. Bxh8 {[%emt 0:00:52]} Nxh8 {[%emt 0:00:07]} 20. Rfe1 {[%emt 0:01:01]} Nhg6 {[%emt 0:00:06]} 21. Qf6 {[%emt 0:01:31]} Rg8 {[%emt 0:01:12]} 22. Qf7 {[%emt 0:02:28]} Qf5 {[%emt 0:01:54]} 23. Qxg8+ {[%emt 0:02:19]} Nxg8 {[%emt 0:00:03]} 24. Re8+ {[%emt 0:00:01]} Qc8 {[%emt 0:00:03]} 25. Rae1 {[%emt 0:00:05]} Nf6 {[%emt 0:00:05]} 26. Rxc8+ {[%emt 0:00:04]} Kxc8 {[%emt 0:00:01]} 27. g3 {[%emt 0:00:08]} Kd7 {[%emt 0:00:12]} 28. f4 {[%emt 0:00:02]} c6 {[%emt 0:00:25]} 29. dxc6+ {[%emt 0:00:04]} bxc6 {[%emt 0:00:01]} 30. f5 {[%emt 0:00:10]} Ne7 {[%emt 0:00:18]} 31. g4 {[%emt 0:00:02]} h6 {[%emt 0:00:26]} 32. Kf2 {[%emt 0:00:08]} c5 {[%emt 0:00:12]} 33. Re6 {[%emt 0:00:12]} Nfg8 {[%emt 0:00:50]} 34. b4 {[%emt 0:00:24]} cxb4 {[%emt 0:00:16]} 35. axb4 {[%emt 0:00:02]} h5 {[%emt 0:00:17]} 36. Ra6 {[%emt 0:00:16]} Nc6 {[%emt 0:00:13]} 37. b5 {[%emt 0:00:04]} Ne5 {[%emt 0:00:08]} 38. Rxa7+ {[%emt 0:00:29]} Kd6 {[%emt 0:00:05]} 39. Rg7 {[%emt 0:01:20]} Nh6 {[%emt 0:00:16]} 40. Rh7 {[%emt 0:00:29]} Ng8 {[%emt 0:00:21]} 41. g5 {[%emt 0:00:11]} Nxc4 {[%emt 0:00:07]} 42. f6 {[%emt 0:00:06]} Ne5 {[%emt 0:00:14]} 43. f7 {[%emt 0:00:28]} Nxf7 {[%emt 0:00:13]} 44. Rxf7 {[%emt 0:00:02]} Ke6 {[%emt 0:00:04]} 45. Rf8 {[%emt 0:00:06]} Ne7 {[%emt 0:00:02]} 46. Re8 {[%emt 0:00:02]} 1-0

[Event "15th Deltalift Open 2018"]
[Site "Halmstad"]
[Date "2018.05.10"]
[Round "4"]
[White "Sorensen, Hampus"]
[Black "Bergre, Joachim"]
[Result "1-0"]
[ECO "A57"]
[WhiteElo "2176"]
[BlackElo "1990"]
[Annotator "NA"]
[PlyCount "69"]
[EventDate "2018.??.??"]
[EventType "swiss"]
[EventCountry "SWE"]
[SourceTitle "playchess.com"]
[Source "ChessBase"]
[SourceQuality "1"]
[TimeControl "1800+12"]

1. d4 {[%emt 0:00:00]} Nf6 {[%emt 0:00:09]} 2. c4 {[%emt 0:00:17]} c5 {[%emt 0:00:10]} 3. d5 {[%emt 0:00:03]} b5 {[%emt 0:00:04]} 4. Qc2 {[%emt 0:00:02]} bxc4 {[%emt 0:00:45]} 5. e4 {[%emt 0:00:02]} d6 {[%emt 0:00:19]} 6. Bxc4 {[%emt 0:00:06]} g6 {[%emt 0:00:30]} 7. Nf3 {[%emt 0:00:06]} Bg7 {[%emt 0:00:16]} 8. h3 {[%emt 0:00:14]} O-O {[%emt 0:01:30]} 9. O-O {[%emt 0:00:03]} Ba6 {[%emt 0:02:08]} 10. Na3 {[%emt 0:00:13]} Nfd7 {[%emt 0:03:04]} 11. Qe2 {[%emt 0:03:19]} Bxc4 {[%emt 0:01:43]} 12. Nxc4 {[%emt 0:00:06]} Nb6 {[%emt 0:01:35]} 13. Rb1 {[%emt 0:01:22]} Nxc4 {[%emt 0:01:26]} 14. Qxc4 {[%emt 0:00:02]} Nd7 {[%emt 0:00:07]} 15. Bd2 {[%emt 0:00:31]} Nb6 {[%emt 0:01:48]} 16. Qe2 {[%emt 0:00:38]} Qd7 {[%emt 0:03:00]} 17. b3 {[%emt 0:04:07]} Rac8 {[%emt 0:01:43]} 18. Rbc1 {[%emt 0:01:25]} Qb7 {[%emt 0:02:36]} 19. Bc3 {[%emt 0:00:50]} Bxc3 {[%emt 0:01:02]} 20. Rxc3 {[%emt 0:00:02]} Nd7 {[%emt 0:00:08]} 21. Rd1 {[%emt 0:01:37]} f6 {[%emt 0:01:27]} 22. Nd2 {[%emt 0:00:49]} Rc7 {[%emt 0:03:13]} 23. Nc4 {[%emt 0:00:49]} Ne5 {[%emt 0:00:57]} 24. f4 {[%emt 0:00:12]} Nxc4 {[%emt 0:00:36]} 25. Rxc4 {[%emt 0:00:09]} Qb5 {[%emt 0:00:22]} 26. e5 {[%emt 0:00:53]} fxe5 {[%emt 0:01:01]} 27. fxe5 {[%emt 0:00:01]} Qd7 {[%emt 0:00:48]} 28. Re4 {[%emt 0:02:49]} Rf5 {[%emt 0:00:48]} 29. exd6 {[%emt 0:01:44]} Qxd6 {[%emt 0:00:22]} 30. Re6 {[%emt 0:00:12]} Qd7 {[%emt 0:00:27]} 31. d6 {[%emt 0:00:19]} exd6 {[%emt 0:00:15]} 32. Rdxd6 {[%emt 0:00:25]} Qf7 {[%emt 0:00:29]} 33. Rd8+ {[%emt 0:01:36]} Kg7 {[%emt 0:00:02]} 34. Rde8 {[%emt 0:00:10]} Kh6 {[%emt 0:00:39]} 35. Qe3+ {[%emt 0:00:01]} 1-0

[Event "15th Deltalift Open 2018"]
[Site "Halmstad"]
[Date "2018.05.10"]
[Round "4"]
[White "Lindhe, Magnus"]
[Black "Crevatin, Leo"]
[Result "1-0"]
[ECO "D00"]
[WhiteElo "2170"]
[BlackElo "2251"]
[Annotator "NA"]
[PlyCount "67"]
[EventDate "2018.??.??"]
[EventType "swiss"]
[EventCountry "SWE"]
[SourceTitle "playchess.com"]
[Source "ChessBase"]
[SourceQuality "1"]
[TimeControl "1800+12"]

1. d4 {[%emt 0:00:00]} d5 {[%emt 0:00:01]} 2. c3 {[%emt 0:00:00]} Nf6 {[%emt 0:00:18]} 3. Bg5 {[%emt 0:00:09]} Ne4 {[%emt 0:00:06]} 4. Bf4 {[%emt 0:00:05] D00: 1 d4 d5: Unusual lines} c5 {[%emt 0:00:48]} 5. f3 {[%emt 0:00:50]} (5. e3 Nc6 6. Nd2 Nxd2 7. Qxd2 cxd4 8. exd4 Bf5 9. Nf3 e6 10. Bb5 Bd6 11. Bg3 O-O 12. O-O Rc8 13. Rfe1 Bxg3 14. hxg3 {1-0 (45) Al Sayed,M (2511)-Christiansen,J (2495) Riadh 2017}) 5... Nf6 {[%emt 0:00:24]} 6. dxc5 {[%emt 0:00:51]} a5 $146 {[%emt 0:01:59]} ({Predecessor:} 6... e5 7. Bxe5 Bxc5 8. Bd4 Bd6 9. e3 Nh5 10. g3 Nc6 11. Ne2 Nxd4 12. exd4 {1-0 (42) Narmontas,M (2370)-Kocheev,A (2247) Kemer 2009}) 7. e4 {[%emt 0:01:16]} e6 {[%emt 0:03:04]} 8. b4 (8. Qd4 $11 {keeps the balance.}) 8... axb4 {[%emt 0:00:38]} 9. cxb4 {[%emt 0:03:18]} b6 {[%emt 0:02:27] [#]} 10. Bxb8 $1 {[%emt 0:03:37]} Rxb8 {[%emt 0:00:51]} 11. Bb5+ {[%emt 0:01:10]} Ke7 {[%emt 0:03:03]} 12. c6 {[%emt 0:01:31]} dxe4 {[%emt 0:01:14]} 13. Qxd8+ {[%emt 0:03:46]} Kxd8 {[%emt 0:00:01]} 14. a3 {[%emt 0:01:31]} Ra8 {[%emt 0:00:34]} 15. Nc3 {[%emt 0:00:10]} Kc7 {[%emt 0:01:46]} 16. Ra2 {[%emt 0:04:55]} e5 {[%emt 0:03:30]} (16... Nd5 $17 17. Nge2 exf3 18. gxf3 Be7) 17. Bc4 {[%emt 0:01:00]} Bf5 {[%emt 0:03:41]} 18. g4 {[%emt 0:01:01]} Be6 $1 {[%emt 0:00:30]} 19. Bxe6 {[%emt 0:00:25]} fxe6 {[%emt 0:00:01]} 20. fxe4 {[%emt 0:01:11]} Nxg4 {[%emt 0:02:05]} 21. Nf3 {[%emt 0:00:51]} Kxc6 {[%emt 0:00:57]} 22. Rg1 {[%emt 0:00:34]} Nf6 {[%emt 0:01:40]} 23. Nxe5+ {[%emt 0:00:11]} Kb7 {[%emt 0:00:16]} 24. Nf7 {[%emt 0:01:42]} Rg8 {[%emt 0:00:09]} 25. e5 {[%emt 0:00:31]} Nd5 {[%emt 0:00:49]} 26. Nxd5 {[%emt 0:01:48]} exd5 {[%emt 0:00:01]} 27. Rgg2 {[%emt 0:00:17]} g6 {[%emt 0:01:17]} 28. Rge2 {[%emt 0:00:06]} Be7 {[%emt 0:00:58]} 29. e6 {[%emt 0:00:12]} Rgc8 {[%emt 0:00:17]} 30. Kf2 {[%emt 0:00:38]} Rc3 {[%emt 0:00:21]} 31. Red2 {[%emt 0:00:18]} Kc6 {[%emt 0:01:03]} 32. Kg2 {[%emt 0:00:33]} Raxa3 {[%emt 0:00:29]} (32... b5 $15 33. Rd4 Raxa3) 33. Ne5+ {[%emt 0:00:20]} Kd6 $18 {[%emt 0:01:01]} (33... Kb7 $14 34. Rxa3 Rxa3) 34. Rxa3 {[%emt 0:00:03]} 1-0

[Event "15th Deltalift Open 2018"]
[Site "Halmstad"]
[Date "2018.05.10"]
[Round "4"]
[White "Subramanian, Aditya"]
[Black "Lundell, Jens"]
[Result "1-0"]
[ECO "D80"]
[WhiteElo "2123"]
[BlackElo "1942"]
[Annotator "NA"]
[PlyCount "51"]
[EventDate "2018.??.??"]
[EventType "swiss"]
[EventCountry "SWE"]
[SourceTitle "playchess.com"]
[Source "ChessBase"]
[SourceQuality "1"]
[TimeControl "1800+12"]

1. d4 {[%emt 0:00:08]} Nf6 {[%emt 0:00:12]} 2. c4 {[%emt 0:00:08]} g6 {[%emt 0:00:02]} 3. Nc3 {[%emt 0:00:15]} d5 {[%emt 0:00:01]} 4. Bg5 {[%emt 0:00:05]} Ne4 {[%emt 0:01:56]} 5. Nxe4 {[%emt 0:00:03]} dxe4 {[%emt 0:00:03]} 6. Qd2 {[%emt 0:00:01]} Bg7 {[%emt 0:01:10]} 7. e3 {[%emt 0:00:01]} c5 {[%emt 0:02:00]} 8. Ne2 {[%emt 0:00:03]} Nc6 {[%emt 0:02:17]} 9. d5 {[%emt 0:00:02]} Ne5 {[%emt 0:01:10]} 10. Nc3 {[%emt 0:00:03]} f5 {[%emt 0:00:37]} 11. O-O-O {[%emt 0:00:25]} Nf7 {[%emt 0:04:41]} 12. Bf4 {[%emt 0:01:42]} Nd6 {[%emt 0:01:32]} 13. f3 {[%emt 0:00:08]} exf3 {[%emt 0:00:29]} 14. gxf3 {[%emt 0:00:03]} O-O {[%emt 0:00:42]} 15. h4 {[%emt 0:00:03]} Bd7 {[%emt 0:00:32]} 16. h5 {[%emt 0:00:22]} Be8 {[%emt 0:01:20]} 17. hxg6 {[%emt 0:00:33]} Bxg6 {[%emt 0:00:50]} 18. Bd3 {[%emt 0:00:19]} Qd7 {[%emt 0:00:22]} 19. Rdg1 {[%emt 0:00:25]} a6 {[%emt 0:01:24]} 20. Bh6 {[%emt 0:00:21]} Rf7 {[%emt 0:00:46]} 21. Ne2 {[%emt 0:01:17]} Be5 {[%emt 0:02:31]} 22. Nf4 {[%emt 0:00:19]} Bxf4 23. Bxf4 b5 {[%emt 0:00:55]} 24. Be5 {[%emt 0:00:22]} Rg7 {[%emt 0:02:13]} 25. Bxg7 {[%emt 0:00:13]} Kxg7 {[%emt 0:00:02]} 26. Qc3+ {[%emt 0:00:02]} 1-0

[Event "15th Deltalift Open 2018"]
[Site "Halmstad"]
[Date "2018.05.10"]
[Round "4"]
[White "Troberg Eskola, Love"]
[Black "Lindh, Fredrik"]
[Result "0-1"]
[ECO "B31"]
[WhiteElo "1993"]
[BlackElo "2296"]
[Annotator "NA"]
[PlyCount "38"]
[EventDate "2018.??.??"]
[EventType "swiss"]
[EventCountry "SWE"]
[SourceTitle "playchess.com"]
[Source "ChessBase"]
[SourceQuality "1"]
[TimeControl "1800+12"]

1. e4 {[%emt 0:00:00]} c5 {[%emt 0:00:03]} 2. Nf3 {[%emt 0:00:00]} Nc6 {[%emt 0:00:02]} 3. Bb5 {[%emt 0:00:00]} g6 {[%emt 0:00:02]} 4. Bxc6 {[%emt 0:00:00]} bxc6 {[%emt 0:00:01]} 5. O-O {[%emt 0:00:00]} Bg7 {[%emt 0:00:05]} 6. d3 {[%emt 0:00:00]} d6 {[%emt 0:00:09]} 7. h3 {[%emt 0:00:00]} Nh6 {[%emt 0:00:13]} 8. Qe2 {[%emt 0:00:16]} O-O {[%emt 0:00:26]} 9. Nc3 {[%emt 0:00:51]} f6 {[%emt 0:01:54]} 10. Be3 {[%emt 0:00:34]} Nf7 {[%emt 0:00:03]} 11. Nh2 {[%emt 0:00:21]} Rb8 {[%emt 0:02:05]} 12. Rab1 {[%emt 0:00:15]} f5 {[%emt 0:02:03]} 13. Qd2 {[%emt 0:01:31]} Bd7 {[%emt 0:08:21]} 14. a3 {[%emt 0:00:40]} Qa5 {[%emt 0:00:19]} 15. f4 $15 {[%emt 0:01:20]} ({White should try} 15. exf5 $11 gxf5 16. Nf3) 15... Rxb2 {[%emt 0:02:23]} 16. Nd5 {[%emt 0:00:45]} Qxd2 {[%emt 0:00:45]} 17. Nxe7+ {[%emt 0:00:01]} Kh8 {[%emt 0:00:01]} 18. Bxd2 {[%emt 0:00:02]} Rxb1 {[%emt 0:00:03]} 19. Rxb1 {[%emt 0:00:00]} Re8 {[%emt 0:00:01]} 0-1

[Event "15th Deltalift Open 2018"]
[Site "Halmstad"]
[Date "2018.05.10"]
[Round "4"]
[White "Nystrom, Jonas"]
[Black "Lindborg, Patrik"]
[Result "1-0"]
[ECO "B47"]
[WhiteElo "1965"]
[BlackElo "2172"]
[Annotator "NA"]
[PlyCount "71"]
[EventDate "2018.??.??"]
[EventType "swiss"]
[EventCountry "SWE"]
[SourceTitle "playchess.com"]
[Source "ChessBase"]
[SourceQuality "1"]
[TimeControl "1800+12"]

1. e4 {[%emt 0:00:00]} c5 {[%emt 0:00:01]} 2. Nf3 {[%emt 0:00:00]} e6 {[%emt 0:00:01]} 3. d4 {[%emt 0:00:01]} cxd4 {[%emt 0:00:02]} 4. Nxd4 {[%emt 0:00:08]} Nc6 {[%emt 0:00:06]} 5. Nc3 {[%emt 0:02:11]} Qc7 {[%emt 0:00:04]} 6. a3 {[%emt 0:03:12]} Nf6 {[%emt 0:00:54]} 7. Be3 {[%emt 0:00:30]} a6 {[%emt 0:00:16]} 8. Be2 {[%emt 0:01:10]} h5 {[%emt 0:06:16]} 9. Nxc6 {[%emt 0:05:30]} bxc6 {[%emt 0:01:49]} 10. f4 {[%emt 0:01:05]} Rb8 {[%emt 0:00:54]} 11. Rb1 {[%emt 0:04:45]} d5 {[%emt 0:07:04]} 12. e5 {[%emt 0:01:03]} Ng4 {[%emt 0:00:37]} 13. Bxg4 {[%emt 0:01:02]} hxg4 {[%emt 0:00:02]} 14. Qxg4 {[%emt 0:00:18]} c5 {[%emt 0:01:11]} 15. Bd2 {[%emt 0:01:58]} Bb7 {[%emt 0:01:52]} 16. O-O {[%emt 0:00:58]} g6 {[%emt 0:01:36]} 17. Rfe1 {[%emt 0:05:02]} Bc6 {[%emt 0:01:54]} 18. Ne2 {[%emt 0:00:46]} Be7 {[%emt 0:02:14]} 19. Ng3 {[%emt 0:01:20]} Rb7 {[%emt 0:02:01]} 20. Qd1 {[%emt 0:00:59]} Bh4 {[%emt 0:01:46]} 21. Qg4 {[%emt 0:00:29]} Qb8 {[%emt 0:00:31]} 22. b4 {[%emt 0:00:26]} a5 {[%emt 0:00:27]} 23. f5 {[%emt 0:00:56]} gxf5 {[%emt 0:01:43]} 24. Qg7 {[%emt 0:00:11]} Ke7 {[%emt 0:00:48]} 25. Bg5+ {[%emt 0:00:17]} Bxg5 {[%emt 0:00:02]} 26. Qxg5+ {[%emt 0:00:01]} Kd7 {[%emt 0:00:03]} 27. Qf6 {[%emt 0:00:20]} Qd8 {[%emt 0:00:34]} 28. Qxf7+ {[%emt 0:00:05]} Kc8 {[%emt 0:00:00]} 29. Qxe6+ {[%emt 0:00:03]} Bd7 {[%emt 0:00:24]} 30. Qxd5 {[%emt 0:00:08]} Qh4 {[%emt 0:00:22]} 31. Nf1 {[%emt 0:00:43]} axb4 {[%emt 0:00:19]} 32. axb4 {[%emt 0:00:03]} Rxb4 {[%emt 0:00:05]} 33. Qxc5+ {[%emt 0:00:12]} Kd8 {[%emt 0:00:28]} 34. Qxb4 {[%emt 0:00:02]} f4 {[%emt 0:00:01]} 35. Qb8+ {[%emt 0:00:10]} Ke7 {[%emt 0:00:03]} 36. Qd6+ {[%emt 0:00:01]} 1-0